Cogmind - Beta 16.1 *** ADVENTURER MODE // 2026.03.05 @ 15:36:25 Player: Bullet Bait Result: Destroyed by G-67 Veteran with Field Laser Performance ------------- Evolutions (5) 2500 Regions Visited (13) 2600 Robots Destroyed (240) 1200 Value Destroyed (9810) 9810 Prototype IDs (25) 500 Alien Tech Used (0) 0 Bonus (6441) 6441 TOTAL SCORE: 23051 Bonus ------- Follower Combat Kills 1769 Met Warlord at Base 500 MAIN.C Attacked Warlord 500 Warlord Defense Kills 3826 Friendly Fire -154 Cogmind --------- Core Integrity 0/1000 Matter 290/300 Energy 782/975 System Corruption 3% Temperature Cool (13) Movement Walking (98) Location -5/Warlord Parts ------- > --- POWER (3) -------- Light Nuclear Core Neutrino Core > --- PROPULSION (5) --- Carbon-fiber Leg Advanced VSS Leg Enhanced Biometal Leg Experimental Myomer Leg Experimental Myomer Leg > --- UTILITY (5) ------ Experimental Heat Sink Advanced Cooling System Advanced Cooling System Experimental Energy Well Ghost Barrier > --- WEAPON (4) ------- Gatling Laser > --- INVENTORY (5) ---- Light Nuclear Core Carbon-fiber Leg Peak State ------------ > --- POWER ------------ Improved Quantum Reactor Vortex Chain Reactor > --- PROPULSION ------- Advanced VSS Leg Advanced VSS Leg Enhanced Biometal Leg Experimental Myomer Leg Experimental Myomer Leg > --- UTILITY ---------- Advanced Cooling System Advanced Cooling System Experimental Energy Well Improved Target Analyzer Ghost Barrier > --- WEAPON ----------- Heavy Beamcaster Vortex Rail Vortex Rail Enhanced Gauss Cannon > --- INVENTORY -------- Neutrino Core Carbon-fiber Leg Carbon-fiber Leg Experimental Heat Sink Gatling Laser [Rating: 138] Favorites ----------- Power Reinforced Deuterium Engine Engine Reinforced Deuterium Engine Power Core Neutrino Core Reactor Light Antimatter Reactor Propulsion Armored Wheel Treads Improved Treads Leg Flexi-carbon Leg Wheel Armored Wheel Utility Improved Heat Sink Device Improved Heat Sink Storage Small Storage Unit Processor Improved Targeting Computer Hackware Hacking Suite Protection Layered Medium Armor Plating Weapon Heavy Laser Energy Gun Heavy Laser Energy Cannon Heavy Ion Cannon Ballistic Gun KE Penetrator Ballistic Cannon Enhanced Gauss Cannon Launcher Heavy Missile Launcher Special Weapon Plasma Flamer Impact Weapon Power Maul Slashing Weapon Chainsword Build | -11 -10 -9 -8 -7 -6 -6 -6 -6 -6 -5 -5 -5 -5 ------- Run | Yrd Mat Mat Mat Fac Fac Ext Cet Arc Hub Fac Upp Upp War Slots Evolved 10 | . . 2 2 2 2 . . . . 2 . . . Power 2 | . . 1 . . 1 . . . . . . . . Propulsion 3 | . . . 1 1 . . . . . 1 . . . Utility 3 | . . 1 1 . 1 . . . . . . . . Weapon 2 | . . . . 1 . . . . . 1 . . . Parts Attached 253 | 6 5 15 19 42 8 24 9 5 10 35 14 9 52 Power 42 | 1 . 5 3 6 3 2 2 1 1 9 . 3 6 Engine 25 | 1 . 5 1 5 3 1 1 . 1 5 . 2 . Core 13 | . . . 2 1 . 1 1 1 . 4 . . 3 Reactor 4 | . . . . . . . . . . . . 1 3 Propulsion 63 | 2 1 2 1 13 2 9 4 1 3 6 1 2 16 Treads 3 | . . . . . . . . . . . 1 2 . Leg 35 | . . . . . . 9 4 1 3 2 . . 16 Wheel 25 | 2 1 2 1 13 2 . . . . 4 . . . Hover . | . . . . . . . . . . . . . . Flight . | . . . . . . . . . . . . . . Utility 82 | 1 . 5 9 14 2 7 2 3 2 13 7 2 15 Device 56 | . . 3 6 10 . 5 1 3 1 11 4 1 11 Storage 5 | 1 . 1 1 . . . . . . . 1 . 1 Processor 6 | . . . . 3 1 . . . . . . . 2 Hackware 3 | . . . . . 1 . . . . 1 . . 1 Protection 12 | . . 1 2 1 . 2 1 . 1 1 2 1 . Artifact . | . . . . . . . . . . . . . . Weapon 66 | 2 4 3 6 9 1 6 1 . 4 7 6 2 15 Energy Gun 28 | 2 . . . 5 1 2 1 . 3 1 2 . 11 Energy Cannon 21 | . 4 3 3 4 . 4 . . . 1 1 . 1 Ballistic Gun 3 | . . . . . . . . . . 3 . . . Ballistic Cannon 2 | . . . . . . . . . . 1 . . 1 Launcher 4 | . . . 1 . . . . . . 1 2 . . Special Weapon 3 | . . . . . . . . . . . 1 . 2 Impact Weapon 1 | . . . . . . . . . . . . 1 . Slashing Weapon 4 | . . . 2 . . . . . 1 . . 1 . Piercing Weapon . | . . . . . . . . . . . . . . Special Melee Weapon . | . . . . . . . . . . . . . . Unidentified Prototypes 19 | . . 2 . 4 . . 1 . . 1 . . 11 Parts Lost 82 | . . . 4 6 . 2 1 . 15 13 11 7 23 Power 16 | . . . 1 1 . 1 1 . 2 3 2 2 3 Propulsion 23 | . . . . 3 . 1 . . 5 4 4 1 5 Utility 21 | . . . 3 2 . . . . 2 5 2 2 5 Weapon 22 | . . . . . . . . . 6 1 3 2 10 Highest Loss Streak 9 | . . . 2 2 . 1 1 . 5 4 9 3 8 To Critical Strikes 4 | . . . . . . . 1 . . . . . 3 Average Backups 6 | 1 6 7 7 7 7 7 7 8 6 4 4 4 4 Power . | . 1 1 1 . . . . . . . . . . Propulsion . | . . . . . 1 1 1 1 . 1 . . . Utility 2 | . . 1 1 3 3 3 2 3 4 1 3 4 2 Weapon 2 | . 4 3 4 2 2 2 3 3 2 1 . . 1 Tool/Special . | . . . . . . . . . . . . . . Unused Backups 52 | . 1 7 6 7 3 3 9 . 1 3 1 2 9 Power 6 | . . 2 . 1 1 1 . . . 1 . . . Propulsion 10 | . . 1 2 1 1 . 3 . . . . . 2 Utility 17 | . . . 3 1 . 1 5 . 1 1 . 2 3 Weapon 16 | . 1 3 1 4 1 1 1 . . . 1 . 3 Tool/Special 3 | . . 1 . . . . . . . 1 . . 1 Average Slot Usage (%) 86 | . 78 90 99 97 99 99 99 100 92 83 66 72 81 Engine 9 | . 14 19 14 13 20 14 11 6 9 7 2 6 3 Core 3 | . . . 3 1 . 4 7 13 6 6 5 3 2 Reactor 1 | . . . . . . . . . . . . 2 4 Treads 2 | . . . . . . . . . . . 3 10 6 Leg 7 | . . . . . . 16 26 26 22 11 . . 11 Wheel 9 | . 21 18 26 28 26 9 . . . 5 4 . . Device 14 | . . 13 14 14 6 6 6 9 13 20 19 14 18 Storage 5 | . 14 11 13 7 6 6 6 6 5 . 2 5 4 Processor 2 | . . . . 4 13 7 6 6 6 2 . . 1 Hackware 1 | . . . . . 5 6 6 6 4 3 . . . Protection 3 | . . 4 8 2 . 4 6 2 . . 4 5 2 Energy Gun 8 | . 4 . . 9 7 7 4 6 11 5 10 8 11 Energy Cannon 7 | . 23 22 17 10 9 12 14 13 5 3 3 . . Slashing Weapon 1 | . . . 1 1 1 . . . 1 1 . 3 1 Peak Build Rating 138 | 6 6 19 28 41 46 62 66 70 70 74 63 66 138 Average Rating 50 | 4 5 13 25 36 44 54 63 68 64 63 45 53 72 On Entrance 39 | . 6 5 19 28 36 46 62 66 70 53 63 45 47 Avg Prop Armor Cover (%) . | . . . . . . . . . . . . . . Naked Turns . | . . . . . . . . . . . . . . Heaviest Build 90 | 12 16 32 36 52 59 78 78 71 69 63 77 66 90 Greatest Support 116 | 20 26 28 49 56 48 75 80 80 80 75 40 76 116 Greatest Overweight (x) 11 | . 1 1 . 1 1 4 1 . 1 2 11 2 2 Average Overweight (x) . | . . . . . 1 1 . . . . 1 . . Largest Inventory Capacity 8 | 8 8 8 8 8 8 8 8 8 8 5 5 5 5 Average Capacity 6 | 7 8 8 8 8 8 8 8 8 7 5 5 5 5 Most Carried 8 | 4 8 8 8 8 8 8 8 8 8 5 5 5 5 Average Carried 6 | 1 6 7 7 7 7 7 7 7 6 4 4 4 4 Final Capacity 8 | 8 8 8 8 8 8 8 8 8 5 5 5 5 5 Final Carried 8 | 3 7 8 8 8 8 8 8 8 4 5 5 5 2 Class Distribution -------------------- 24% | Scavenger-Tank 20% | Scavenger-Gunner 17% | Scavenger-Mutant 14% | Mutant 7% | Gunner 5% | Commander-Gunner 4% | Hacker-Gunner 3% | Scientist-Gunner Dominant Class ---------------- Mutant | -10/Materials Mutant | -9/Materials Mutant | -8/Materials Gunner | -7/Factory Hacker-Gunner | -6/Factory Commander-Gunner | -6/Extension Scavenger-Gunner | -6/Cetus Scavenger-Gunner | -6/Archives Scavenger-Gunner | -6/Hub_04(d) Scavenger-Tank | -5/Factory Scavenger-Tank | -5/Upper Caves Scavenger-Mutant | -5/Upper Caves Scavenger-Mutant | -5/Warlord Resources | -11 -10 -9 -8 -7 -6 -6 -6 -6 -6 -5 -5 -5 -5 ----------- Run | Yrd Mat Mat Mat Fac Fac Ext Cet Arc Hub Fac Upp Upp War Matter Collected 4377 | 260 30 180 278 572 100 310 75 70 62 937 367 226 910 Remotely 50 | . . . . . . 50 . . . . . . . Salvage Created 11099 | 86 189 923 740 2506 222 1094 162 355 698 1463 555 759 1347 Parts 483 | 3 14 38 32 121 12 36 9 13 32 73 17 26 57 Haulers Intercepted 9 | . . 2 1 4 . . . . . 2 . . . Recyclers Shooed 4 | . . 1 . . . 1 . . 1 1 . . . Parts Field Recycled . | . . . . . . . . . . . . . . Retrieved Matter . | . . . . . . . . . . . . . . Parts Self-Destructed 29 | . . . . . . . . . . . 13 16 . Prevented 8 | . . . . . . . . . . . 2 6 . Parts Restored . | . . . . . . . . . . . . . . Kills | -11 -10 -9 -8 -7 -6 -6 -6 -6 -6 -5 -5 -5 -5 ------- Run | Yrd Mat Mat Mat Fac Fac Ext Cet Arc Hub Fac Upp Upp War Combat Hostiles Destroyed 178 | . 5 11 12 38 2 13 1 4 13 20 14 12 33 Melee 11 | . . . 3 5 . 1 . . 2 . . . . Guns 72 | . . . . 16 . 4 . . 6 15 6 7 18 Cannons 69 | . 5 10 9 16 2 4 1 3 5 4 2 . 8 AOE 10 | . . . . . . . . . . . 5 2 3 Classes Destroyed 20 | 1 3 4 1 4 . 1 . . . . . 1 5 Worker 10 | . . . . 5 1 1 . . . 3 . . . Builder 5 | . . . . 3 . . . . . 2 . . . Hauler 9 | . . 2 1 4 . . . . . 2 . . . Recycler 10 | 1 . 3 . 2 . 3 . . . 1 . . . Mechanic 2 | . . . . . . . . . . . . 1 1 Operator 5 | . . 1 . 1 . . . 1 . 2 . . . Watcher 20 | . 3 2 2 5 2 1 1 . 1 3 . . . Swarmer 35 | . 3 . . 8 . 2 . . 3 8 5 . 6 Saboteur 2 | . . . . . . . . . . . . . 2 Grunt 62 | . 2 6 8 18 . 3 1 . 4 4 3 4 9 Brawler 9 | . . . 1 . . . . . . . 1 4 3 Duelist 4 | . . 1 . 1 . . . . . . 1 . 1 Protector 2 | . . . . . . . . . . . . . 2 Sentry 28 | . . 4 3 7 1 5 . 4 1 . 2 1 . Specialist 2 | . . . . . . . . . . . . . 2 Hunter 17 | . . . . 1 1 2 . . 4 3 2 2 2 Programmer 10 | . . . . 3 . . . . 1 4 . . 2 Behemoth 3 | . . . . . . 1 . . . 1 . 1 . Striker 2 | . . . . . . . . . . . . . 2 Executioner 2 | . . . . . . . . . . . . . 2 Guerrilla 1 | . . . . . . . 1 . . . . . . Best Kill Streak 16 | 1 7 5 4 16 3 3 1 4 3 6 5 4 8 Combat Bots Only 8 | . 3 3 2 4 1 2 1 4 3 4 5 3 8 Max Kills in Single Turn 3 | 1 1 2 1 2 1 2 1 1 1 2 3 1 2 Gunslinging . | . . . . . . . . . . . . . . Exploded 3 | . . . . . . . . . . . 3 1 2 Melee 1 | . . . 1 1 . 1 . . 1 . . . . Uniques/NPCs Destroyed . | . . . . . . . . . . . . . . Combat | -11 -10 -9 -8 -7 -6 -6 -6 -6 -6 -5 -5 -5 -5 -------- Run | Yrd Mat Mat Mat Fac Fac Ext Cet Arc Hub Fac Upp Upp War Hostile Shots Fired 1825 | . 22 63 76 245 30 200 36 31 285 269 78 124 366 Missed 599 | . 4 22 19 93 11 77 12 8 98 88 16 40 111 Intercepted 2 | . . . . . . . . . . . . . 2 Hits 1226 | . 18 41 57 152 19 123 24 23 187 181 62 84 255 Melee 8 | . . . 2 1 . . . . . . 1 3 1 Projectile 1218 | . 18 41 55 151 19 123 24 23 187 181 61 81 254 AOE 6 | . . . . . . . . . . . . . 6 Critical Strikes 44 | . . . 6 3 . 1 4 3 4 5 2 2 14 Part Disruptions 1 | . . . . . . . . . . . . . 1 Damage Taken 14361 | . 154 379 831 1284 132 890 426 420 2018 1946 665 1013 4203 Core 1890 | . 18 55 180 177 8 95 29 40 283 229 100 88 588 Absorbed by Shields 1205 | . . . . 44 . . . . . 405 216 267 273 Redirected to Shielding 79 | . . . 79 . . . . . . . . . . Ignored by Resistances 4401 | . 46 118 209 404 40 293 115 112 572 664 248 358 1222 Regen/Repaired (Parts) 202 | . . . 27 . . . . . . . . . 175 Core Remaining (%) 77 | 100 92 86 67 74 . . . . 46 . . . . Volleys Fired 485 | 5 19 39 42 97 9 33 12 11 30 66 25 31 66 Largest 4 | 2 2 2 2 3 3 3 3 3 3 4 4 4 4 Hottest 335 | 80 120 128 143 205 200 215 230 230 251 233 287 256 335 Shots Fired 1271 | 10 38 74 79 252 20 99 29 31 73 225 79 64 198 Gun 679 | 10 . . . 140 10 58 2 9 51 163 43 49 144 Cannon 572 | . 38 74 78 112 10 41 27 22 22 62 22 11 53 Launcher 9 | . . . 1 . . . . . . . 4 4 . Special 11 | . . . . . . . . . . . 10 . 1 Kinetic 172 | . . . . . . . . . . 121 9 . 42 Thermal 989 | 10 38 74 78 230 20 99 29 31 68 104 66 49 93 Explosive 8 | . . . . . . . . . . . 4 4 . Electromagnetic 71 | . . . 1 22 . . . . 5 . . 11 32 Entropic 31 | . . . . . . . . . . . . . 31 Robot Hit Streak 70 | 8 13 13 16 70 10 24 19 19 15 37 17 20 19 Robot Miss Streak 5 | 1 3 2 3 4 5 1 2 1 1 2 2 1 4 Penetration Max 2 | . . . . . . . . . . 1 . . 2 Secondary Targets 5 | . . . . 3 . . . . . 2 . . . Max Gunslinging Chain 1 | . . . . 1 . . . . . 1 . . . Shots Hit Robots 989 | 8 27 52 76 208 11 75 23 26 66 161 55 57 144 Core Hits 457 | 2 10 22 24 94 7 38 11 11 24 53 32 37 92 Critical Kills 6 | . . 1 . 2 . . . . . 2 1 . . Critical Parts Destroyed 7 | . . . . . . . . . . 2 . 3 2 Critical Strikes 38 | . . 1 . 6 . 3 . . 6 5 1 3 13 Burn 13 | . . . . 1 . 2 . . 3 . . . 7 Meltdown 5 | . . 1 . 2 . . . . . 1 1 . . Destroy 3 | . . . . . . . . . . 3 . . . Blast 4 | . . . . . . . . . . 1 . . 3 Corrupt 2 | . . . . . . . . . 1 . . . 1 Smash 3 | . . . . . . . . . . . . 3 . Sever 6 | . . . . 3 . 1 . . 2 . . . . Detonate 2 | . . . . . . . . . . . . . 2 Melee Attacks 63 | . . . 14 15 . 8 . . 14 3 . 9 . Impact 5 | . . . . . . . . . . . . 5 . Slashing 58 | . . . 14 15 . 8 . . 14 3 . 4 . Piercing . | . . . . . . . . . . . . . . Sneak Attacks 5 | . . . . 2 . 1 . . 1 . . 1 . Combat Hostiles . | . . . . . . . . . . . . . . Follow-up Attacks 1 | . . . . . . . . . . . . 1 . Damage Inflicted 26912 | 85 476 964 1580 5330 310 2033 672 739 1997 3664 1729 1952 5381 Guns 12094 | 85 . . . 2622 95 1042 59 260 1005 2524 562 771 3069 Cannons 10388 | . 475 964 1298 2162 215 807 613 479 515 1085 382 150 1243 Explosions 2443 | . . . 26 . . . . . . . 708 640 1069 Melee 1870 | . . . 256 529 . 184 . . 477 33 . 391 . Ramming 40 | . 1 . . 17 . . . . . 22 . . . Kinetic 3124 | . . . . . . . . . . 1993 170 . 961 Thermal 17554 | 85 475 964 1298 4350 310 1849 672 739 1461 1616 851 771 2113 Explosive 2122 | . . . . . . . . . . . 708 640 774 Electromagnetic 1014 | . . . 26 434 . . . . 59 . . 150 345 Impact 310 | . . . . . . . . . . . . 310 . Slashing 1560 | . . . 256 529 . 184 . . 477 33 . 81 . Piercing . | . . . . . . . . . . . . . . Entropic 1188 | . . . . . . . . . . . . . 1188 Highest Corruption 4 | . 2 . 4 1 . . . . . 4 4 4 4 Average Corruption 3 | . 2 . 4 1 . . . . . 3 4 4 3 Corruption Purged 1 | . . . . 1 . . . . . . . . . Corruption Blocked . | . . . . . . . . . . . . . . Effects 109 | . 2 . 16 1 . . . . . 12 41 33 4 Message Errors 23 | . . . 3 1 . . . . . 3 8 6 2 Matter Fused 27 | . . . 2 . . . . . . 4 10 11 . Heat Flow Errors 12 | . . . 1 . . . . . . 2 4 5 . Energy Discharges 16 | . . . 2 . . . . . . . 9 4 1 Parts Rejected 1 | . . . . . . . . . . . . 1 . Parts Fused 1 | . . . . . . . . . . . . 1 . Data Loss (minor) 13 | . 1 . 4 . . . . . . 1 6 . 1 Data Loss (major) 4 | . . . 1 . . . . . . 1 1 1 . Misfires 3 | . . . 1 . . . . . . . . 2 . Alerts 8 | . 1 . 2 . . . . . . . 3 2 . Weapon Failures 1 | . . . . . . . . . . 1 . . . Overload Shots 9 | . . . . 9 . . . . . . . . . Overflow Damage 478 | . . 4 22 76 16 45 . . 47 29 33 206 . Projectiles 133 | . . 4 17 35 16 19 . . 13 29 . . . Explosions 39 | . . . . . . . . . . . 33 6 . Melee 306 | . . . 5 41 . 26 . . 34 . . 200 . Knockbacks 14 | . . . . . . . . . . 5 . 2 7 Impact 3 | . . . . . . . . . . 1 . 2 . Kinetic 11 | . . . . . . . . . . 4 . . 7 Secondary . | . . . . . . . . . . . . . . Self-Inflicted Damage 66 | . . . . 8 . . . . . . 38 . 20 Shots 4 | . . . . . . . . . . . 3 . 1 Rammed 3 | . 1 . . 2 . . . . . . . . . Targets Rammed 4 | . 1 . . 2 . . . . . 1 . . . Kicked 1 | . . . . . . . . . . 1 . . . Crushed . | . . . . . . . . . . . . . . Highest Temperature 671 | 54 323 246 515 342 136 435 300 520 312 199 671 204 372 Average Temperature 124 | 22 178 99 170 101 63 136 112 152 129 99 199 63 78 Received Heat Transfer 4060 | . 81 225 576 517 30 333 126 117 540 205 123 291 896 Effects 55 | . 2 3 9 4 . 6 3 5 1 . 16 3 3 Shutdowns 21 | . . . 3 1 . 5 . 2 . . 9 . 1 Energy Bleed 8 | . . . . 2 . . . 2 1 . 3 . . Interference 17 | . . 3 4 . . . 3 1 . . 1 3 2 Matter Decay 2 | . . . . . . . . . . . 2 . . Short Circuit 4 | . 2 . 1 1 . . . . . . . . . Damage (minor) 1 | . . . . . . 1 . . . . . . . Damage (major) 1 | . . . . . . . . . . . 1 . . Damage (core) 1 | . . . 1 . . . . . . . . . . Siege Activations . | . . . . . . . . . . . . . . Martial Activations . | . . . . . . . . . . . . . . Shielding Activations . | . . . . . . . . . . . . . . Robots Disrupted 1 | . . . . 1 . . . . . . . . . Combat Hostiles 1 | . . . . 1 . . . . . . . . . Robots Corrupted 3 | . . . . . . . . . . . . 3 . Combat Hostiles 3 | . . . . . . . . . . . . 3 . Parts Fried 8 | . . . . . . . . . . . . 6 2 Impact Corruptions 7 | . . . . . . . . . . . . 7 . Robots Melted 12 | . . 1 . 2 . 4 . 1 . 2 1 . 1 Combat Hostiles 10 | . . 1 . 1 . 4 . 1 . 1 1 . 1 Parts Melted 60 | . 1 5 5 14 1 13 . 4 6 2 3 1 5 Heat Transferred 30355 | 200 999 2035 2294 6897 481 3446 1016 1090 2261 2654 1879 1480 3623 Parts Sabotaged . | . . . . . . . . . . . . . . Parts Stolen . | . . . . . . . . . . . . . . Parts Stripped . | . . . . . . . . . . . . . . Power Chain Reactions . | . . . . . . . . . . . . . . Alert | -11 -10 -9 -8 -7 -6 -6 -6 -6 -6 -5 -5 -5 -5 ------- Run | Yrd Mat Mat Mat Fac Fac Ext Cet Arc Hub Fac Upp Upp War Maximum Alert Level 1 | . . . . 1 . . . . . . . . . Low Security (%) 85 | 100 100 100 100 43 100 100 100 100 100 100 . . . Level 1 14 | . . . . 56 . . . . . . . . . Level 2 . | . . . . . . . . . . . . . . Level 3 . | . . . . . . . . . . . . . . Level 4 . | . . . . . . . . . . . . . . Level 5 . | . . . . . . . . . . . . . . High Security . | . . . . . . . . . . . . . . Max Security . | . . . . . . . . . . . . . . Peak Influence 381 | 5 110 155 120 381 131 172 80 59 97 180 . . . Initial 131 | . . 31 37 44 131 32 . . . 11 . . . Average 89 | . 42 63 64 179 101 64 18 23 35 67 . . . Influence Increases 6804 | 5 174 369 488 1276 96 858 198 95 438 776 353 320 1358 Destroy 0b10 Robot/C 4280 | . 100 220 240 760 40 540 140 80 260 400 320 240 940 Destroy 0b10 Robot/NC 325 | 5 15 40 15 100 15 35 5 5 5 65 . 5 15 Destroy Leader 670 | . 26 68 66 198 24 66 10 . 62 90 30 30 . Allied During Kill 270 | . . . . . . 187 37 . . . 3 . 43 Successful Hack 223 | . 17 23 43 81 8 5 . . 46 . . . . Disable Machine 144 | . . 18 18 9 9 . . 9 . 81 . . . Destroy Structure 82 | . 1 . 1 8 . 10 6 1 5 50 . . . Partial Spotted 30 | . . . 15 . . . . . 15 . . . . Lose Combat Pursuer 780 | . 15 . 90 120 . 15 . . 45 90 . 45 360 Influence Decreases 6279 | 5 87 351 479 1077 332 935 198 95 411 643 513 320 833 Entered New Map 509 | . . 56 68 70 182 45 . . . 16 72 . . Time Decay 4630 | 5 87 295 371 947 150 731 85 95 253 497 311 280 523 Lost Part 779 | . . . 40 60 . 19 10 . 140 130 110 40 230 Lost Ally 343 | . . . . . . 140 103 . . . 20 . 80 Purge Threat 18 | . . . . . . . . . 18 . . . . Squads Dispatched 29 | . . 1 2 12 1 2 1 . 4 5 . 1 . Investigation 11 | . . 1 . 6 1 1 1 . 1 . . . . Extermination 7 | . . . . 4 . . . . 1 2 . . . Reinforcement 10 | . . . 2 2 . 1 . . 2 3 . . . Assault 1 | . . . . . . . . . . . . 1 . Garrison . | . . . . . . . . . . . . . . Intercept . | . . . . . . . . . . . . . . Searches Triggered . | . . . . . . . . . . . . . . Construction Impeded 2 | . . . . . . 1 . . 1 . . . . Haulers Reinforced 2 | . . . . 1 . . . . . 1 . . . Active Scanning Responses . | . . . . . . . . . . . . . . Cargo Convoy Interrupts 1 | . . . . . . . . . . 1 . . . Stealth | -11 -10 -9 -8 -7 -6 -6 -6 -6 -6 -5 -5 -5 -5 --------- Run | Yrd Mat Mat Mat Fac Fac Ext Cet Arc Hub Fac Upp Upp War Distress Signals 13 | . 2 1 3 3 . 2 2 . . . . . . Communications Jammed 12 | . . . . . . . . . . 12 . . . Distress Signals 12 | . . . . . . . . . . 12 . . . Times Spotted 363 | . 10 16 24 60 5 27 12 7 24 38 14 13 113 Peak Tracking Total 19 | . 6 5 6 5 2 6 5 2 7 7 5 6 19 Tactical Retreats 25 | . 1 . 3 4 . 1 . . 2 3 . 2 9 Traps | -11 -10 -9 -8 -7 -6 -6 -6 -6 -6 -5 -5 -5 -5 ------- Run | Yrd Mat Mat Mat Fac Fac Ext Cet Arc Hub Fac Upp Upp War Traps Triggered 11 | . . . . 2 1 6 . . 1 1 . . . Indirectly . | . . . . . . . . . . . . . . Trap Hack Attempts . | . . . . . . . . . . . . . . Triggered . | . . . . . . . . . . . . . . Disarmed . | . . . . . . . . . . . . . . Reprogrammed . | . . . . . . . . . . . . . . Reused . | . . . . . . . . . . . . . . Traps Extracted . | . . . . . . . . . . . . . . Installed . | . . . . . . . . . . . . . . Triggered . | . . . . . . . . . . . . . . Machines | -11 -10 -9 -8 -7 -6 -6 -6 -6 -6 -5 -5 -5 -5 ---------- Run | Yrd Mat Mat Mat Fac Fac Ext Cet Arc Hub Fac Upp Upp War Machines Disabled 24 | . . 2 2 1 1 . 2 1 . 9 1 1 4 Max in Single Turn 2 | . . 1 1 1 1 . 2 1 . 2 1 1 1 Machines Repaired . | . . . . . . . . . . . . . . Machines Dismantled 1 | . . . . . . . . . . . . . 1 Machines Sabotaged . | . . . . . . . . . . . . . . Overloaded Fab Kills . | . . . . . . . . . . . . . . Hacking | -11 -10 -9 -8 -7 -6 -6 -6 -6 -6 -5 -5 -5 -5 --------- Run | Yrd Mat Mat Mat Fac Fac Ext Cet Arc Hub Fac Upp Upp War Machines Accessed 58 | . 4 6 8 16 1 8 3 . 5 3 . . 4 Terminals 38 | . 4 6 5 6 . 8 3 . 5 1 . . . Fabricators 7 | . . . . 4 1 . . . . 2 . . . Repair Stations 4 | . . . 1 3 . . . . . . . . . Recycling Units 1 | . . . . 1 . . . . . . . . . Scanalyzers 4 | . . . 2 2 . . . . . . . . . Garrison Access . | . . . . . . . . . . . . . . Total Hacks 166 | . 17 22 26 40 3 16 7 . 20 7 . . 8 Successful 91 | . 10 13 19 17 2 8 1 . 11 2 . . 8 Failed 75 | . 7 9 7 23 1 8 6 . 9 5 . . . Catastrophic 6 | . 1 . . 2 . . 1 . 2 . . . . Database Lockouts . | . . . . . . . . . . . . . . Manual 72 | . 7 15 15 16 1 2 . 1 14 1 . . . Terminals 120 | . 17 22 19 16 . 16 7 . 20 3 . . . Fabricators 17 | . . . . 10 3 . . . . 4 . . . Repair Stations 6 | . . . 2 4 . . . . . . . . . Recycling Units 2 | . . . . 2 . . . . . . . . . Scanalyzers 13 | . . . 5 8 . . . . . . . . . Garrison Access . | . . . . . . . . . . . . . . Terminal Hacks 46 | . 6 7 8 3 . 7 1 . 6 . . . 8 Record 7 | . . . . . . . 1 . . . . . 6 Part Schematic 1 | . . . 1 . . . . . . . . . . Prototype ID Bank 4 | . 1 1 2 . . . . . . . . . . Open Door 8 | . . . . . . 6 . . . . . . 2 Open DSF 1 | . . . . 1 . . . . . . . . . Level Access Points 1 | . . . . . . . . . 1 . . . . Branch Access Points 1 | . . 1 . . . . . . . . . . . Emergency Access Points 1 | . . 1 . . . . . . . . . . . Terminal Index 4 | . 1 1 1 . . . . . 1 . . . . Fabricator Index 1 | . . 1 . . . . . . . . . . . Repair Station Index 1 | . . . 1 . . . . . . . . . . Alert Level 1 | . . . . . . . . . 1 . . . . Unreport Threat 1 | . . . . . . . . . 1 . . . . Locate Traps 4 | . 1 1 . 1 . 1 . . . . . . . Dispatch Records 1 | . 1 . . . . . . . . . . . . Security Status 1 | . . . . . . . . . 1 . . . . Surveillance Status 1 | . 1 . . . . . . . . . . . . Recall Reinforcements 2 | . . . 2 . . . . . . . . . . Hauler Manifests 1 | . 1 . . . . . . . . . . . . Registered Components 1 | . . . . . . . . . 1 . . . . Zone Layout 3 | . . 1 1 1 . . . . . . . . . Fabricator Hacks 9 | . . . . 6 2 . . . . 1 . . . Network Status 1 | . . . . 1 . . . . . . . . . Load Schematic 5 | . . . . 3 1 . . . . 1 . . . Build 3 | . . . . 2 1 . . . . . . . . Repair Station Hacks 2 | . . . 2 . . . . . . . . . . Scan Component 1 | . . . 1 . . . . . . . . . . Repair 1 | . . . 1 . . . . . . . . . . Recycling Unit Hacks . | . . . . . . . . . . . . . . Scanalyzer 9 | . . . 5 4 . . . . . . . . . Insert Component 2 | . . . 2 . . . . . . . . . . Analyze 2 | . . . 2 . . . . . . . . . . Retrieve Study 5 | . . . 1 4 . . . . . . . . . Garrison Access Hacks . | . . . . . . . . . . . . . . Unauthorized Hacks 25 | . 4 6 4 4 . 1 . . 5 1 . . . Terminals 25 | . 4 6 4 4 . 1 . . 5 1 . . . Botnet 25 | . 4 6 4 4 . 1 . . 5 1 . . . Fabricators . | . . . . . . . . . . . . . . Repair Stations . | . . . . . . . . . . . . . . Recycling Units . | . . . . . . . . . . . . . . Scanalyzers . | . . . . . . . . . . . . . . Garrison Access . | . . . . . . . . . . . . . . Data Cores Recovered 2 | . . 1 . 1 . . . . . . . . . Used . | . . . . . . . . . . . . . . Hacking Detections 52 | . 4 6 8 16 2 5 3 . 5 3 . . . Full Trace Events 9 | . . 1 . 5 1 1 1 . . . . . . Feedback Events . | . . . . . . . . . . . . . . Feedback Blocked . | . . . . . . . . . . . . . . Robot Schematics Acquired . | . . . . . . . . . . . . . . Robots Built . | . . . . . . . . . . . . . . Authchips . | . . . . . . . . . . . . . . Time . | . . . . . . . . . . . . . . Total Robot Build Rating . | . . . . . . . . . . . . . . Part Schematics Acquired 3 | . . . 3 . . . . . . . . . . Parts Built 6 | . . . . 4 2 . . . . . . . . Authchips . | . . . . . . . . . . . . . . Time 113 | . . . . 82 31 . . . . . . . . Total Part Build Rating 12 | . . . . 8 4 . . . . . . . . Part Studies Acquired 5 | . . . 1 4 . . . . . . . . . Parts Repaired 1 | . . . 1 . . . . . . . . . . Time 13 | . . . 13 . . . . . . . . . . Parts Recycled . | . . . . . . . . . . . . . . Recycled Matter . | . . . . . . . . . . . . . . Retrieved Matter . | . . . . . . . . . . . . . . Retrieved Components . | . . . . . . . . . . . . . . Parts Scanalyzed 2 | . . . 2 . . . . . . . . . . Part Schematics Acquired 2 | . . . 2 . . . . . . . . . . Parts Damaged . | . . . . . . . . . . . . . . Bothacking | -11 -10 -9 -8 -7 -6 -6 -6 -6 -6 -5 -5 -5 -5 ------------ Run | Yrd Mat Mat Mat Fac Fac Ext Cet Arc Hub Fac Upp Upp War Used RIF Installer . | . . . . . . . . . . . . . . Robots Hacked . | . . . . . . . . . . . . . . Non-combat . | . . . . . . . . . . . . . . Combat . | . . . . . . . . . . . . . . Robot Hacks Applied . | . . . . . . . . . . . . . . Relay Couplers Released . | . . . . . . . . . . . . . . Fabnet Peak Effective % . | . . . . . . . . . . . . . . Robots Rewired 22 | . . . . . . 16 . . . . 1 . 5 Allies Hacked . | . . . . . . . . . . . . . . Hacks Repelled . | . . . . . . . . . . . . . . Allies | -11 -10 -9 -8 -7 -6 -6 -6 -6 -6 -5 -5 -5 -5 -------- Run | Yrd Mat Mat Mat Fac Fac Ext Cet Arc Hub Fac Upp Upp War Total Allies 31 | . . . . . . 25 . . . . 1 . 5 Largest Group 14 | . . . . . . 14 12 . . . 1 . 5 Highest-Rated Group 426 | . . . . . . 426 370 . . . 30 . 242 Highest-Rated Ally 68 | . . . . . . 39 39 . . . 30 . 68 Total Orders . | . . . . . . . . . . . . . . Ally Attacks 196 | . . . . . . 122 28 . . . 3 . 43 Total Damage 5240 | . . . . . . 2189 546 . . . 111 . 2394 Kills 43 | . . . . . . 17 7 . . . 2 . 17 Allies Corrupted . | . . . . . . . . . . . . . . Allies Melted 4 | . . . . . . . . . . . . . 4 Intel | -11 -10 -9 -8 -7 -6 -6 -6 -6 -6 -5 -5 -5 -5 ------- Run | Yrd Mat Mat Mat Fac Fac Ext Cet Arc Hub Fac Upp Upp War Active Infowar (turns) 2127 | . . 218 373 389 303 344 . . . 431 69 . . Sensors 218 | . . 218 . . . . . . . . . . . Traps 262 | . . . 262 . . . . . . . . . . T.N.C. 993 | . . . . 346 303 344 . . . . . . . Jamming 500 | . . . . . . . . . . 431 69 . . ECM 154 | . . . 111 43 . . . . . . . . . Robot Analysis Total . | . . . . . . . . . . . . . . Derelict Logs Recovered 4 | . . . . . . . . . . . 2 2 . Drone Launches . | . . . . . . . . . . . . . . Drone Recoveries . | . . . . . . . . . . . . . . Exploration | -11 -10 -9 -8 -7 -6 -6 -6 -6 -6 -5 -5 -5 -5 ------------- Run | Yrd Mat Mat Mat Fac Fac Ext Cet Arc Hub Fac Upp Upp War Turns Passed 13373 | 95 238 617 799 2097 303 1652 317 248 631 1112 1501 1305 2458 Spaces Moved 7894 | 85 182 409 574 1709 209 817 199 157 358 617 639 608 1331 Core 39 | 8 . . . . . . . . . . 31 . . Treads 1722 | . . . . . . . . . . . 416 608 698 Legs 2239 | . . . . . . 486 199 157 358 406 . . 633 Wheels 3894 | 77 182 409 574 1709 209 331 . . . 211 192 . . Hover . | . . . . . . . . . . . . . . Flight . | . . . . . . . . . . . . . . Fastest Speed 50 | 50 80 95 86 80 95 80 120 120 120 95 95 160 92 Average Speed 131 | 77 89 106 92 89 95 151 128 120 131 124 214 194 149 Slowest Speed 600 | 80 100 115 93 101 95 400 190 120 190 260 600 320 260 Overloaded Moves . | . . . . . . . . . . . . . . Propulsion Burnouts . | . . . . . . . . . . . . . . Robots Hopped . | . . . . . . . . . . . . . . Potential Cave-ins . | . . . . . . . . . . . . . . Cave-ins Triggered . | . . . . . . . . . . . . . . Exploration Rate (%) 50 | 4 31 35 46 46 7 85 67 92 40 15 76 79 90 Regions Visited 13 Branch Regions 7 Pre-discovered Areas . | . . . . . . . . . . . . . . Known Exits Taken 1 | . . . . . . . . . 1 . . . . Unknown Exits Taken 12 | 1 1 1 1 1 1 1 1 1 . 1 1 1 . Scrap Searched 6 | . . . . . . . . . . . 4 2 . Spaces Dug 3 | . . . . . . 3 . . . . . . . Terrain Destroyed 240 | . . . 1 5 . 7 1 1 4 22 48 46 105 Melee 3 | . . . . . . 3 . . . . . . . Projectile 102 | . . . 1 5 . 4 1 1 4 22 10 . 54 AOE 135 | . . . . . . . . . . . 38 46 51 Terrain Rammed . | . . . . . . . . . . . . . . Walls Destroyed . | . . . . . . . . . . . . . . Machines Disabled . | . . . . . . . . . . . . . . Actions | -11 -10 -9 -8 -7 -6 -6 -6 -6 -6 -5 -5 -5 -5 --------- Run | Yrd Mat Mat Mat Fac Fac Ext Cet Arc Hub Fac Upp Upp War Total 9808 | 104 218 527 738 2066 296 1145 250 194 441 805 707 662 1655 Wait 479 | . 3 22 47 112 56 102 . 12 13 31 9 . 72 Move 7882 | 84 181 408 573 1708 208 817 198 156 357 616 638 607 1331 Hop . | . . . . . . . . . . . . . . Pick Up 173 | 9 6 16 14 24 5 8 13 4 10 21 10 1 32 Fast Attach 97 | . . 7 8 16 . 9 1 . . 16 3 9 28 Attach 75 | 6 . 2 5 4 2 2 1 1 13 15 6 1 17 Detach 11 | . . 1 2 . . . 1 . 1 2 . 2 2 Swap 147 | . 5 7 14 39 9 19 7 5 2 11 6 1 22 Drop 233 | . 3 25 19 49 7 27 17 5 1 23 7 3 47 Fire 485 | 5 19 39 42 97 9 33 12 11 30 66 25 31 66 Melee 61 | . . . 14 15 . 8 . . 14 3 . 7 . Ram 3 | . 1 . . 2 . . . . . . . . . Kick 1 | . . . . . . . . . . 1 . . . Crush . | . . . . . . . . . . . . . . Escape Stasis 39 | . . . . . . 39 . . . . . . . Rewire 114 | . . . . . . 81 . . . . 3 . 30 Trap . | . . . . . . . . . . . . . . Miscellaneous 8 | . . . . . . . . . . . . . 8 Route ------- -11/Scrapyard -10/Materials -9/Materials (discovered 3 exits: *Mat / Min x2) -8/Materials (discovered 2 exits: *Fac x2) -7/Factory (discovered 3 exits: *Fac x2 / [*Low]) -6/Factory -6/Extension (discovered 3 exits: *Fac x2 / *Cet) -6/Cetus -6/Archives (discovered 3 exits: *Fac / *Hub x2) -6/Hub_04(d) (discovered 4 exits: *Fac x4) -5/Factory (discovered 2 exits: [*Upp x2]) -5/Upper Caves -5/Upper Caves -5/Warlord History --------- Turn | Location | Event 21 | -11/Scrapyard | Discovered new exit (range 15) 96 | -11/Scrapyard | Entered Materials 313 | -10/Materials | Build established: Mutant 320 | -10/Materials | Discovered new exit (range 9) 334 | -10/Materials | Entered another Materials area 334 | -9/Materials | Evolved 2 slots: Power x1, Utility x1 419 | -9/Materials | Identified exit to Mines 678 | -9/Materials | Discovered new exit (range 10) 951 | -9/Materials | Entered another Materials area 951 | -8/Materials | Evolved 2 slots: Propulsion x1, Utility x1 1343 | -8/Materials | Discovered new exit (range 5) 1478 | -8/Materials | Repaired Com. Wheel 1718 | -8/Materials | Discovered new exit (range 15) 1750 | -8/Materials | Entered Factory 1750 | -7/Factory | Evolved 2 slots: Propulsion x1, Weapon x1 1862 | -7/Factory | Discovered new exit (range 6) 2326 | -7/Factory | Build established: Gunner 2357 | -7/Factory | Discovered new exit (range 15) 2471 | -7/Factory | Found Powered Armor 2576 | -7/Factory | Fabricated Arm. Wheel? 3111 | -7/Factory | Fabricated Arm. Wheel? 3718 | -7/Factory | Discovered new exit (range 16) 3750 | -7/Factory | Build established: Scientist-Gunner 3847 | -7/Factory | Entered another Factory area 3847 | -6/Factory | Evolved 2 slots: Power x1, Utility x1 3945 | -6/Factory | Fabricated Arm. Wheel? 4134 | -6/Factory | Discovered new exit (range 15) 4150 | -6/Factory | Entered Extension 4209 | -6/Extension | Rescued a captive Derelict 4210 | -6/Extension | Rescued a captive Derelict 4399 | -6/Extension | Rescued a captive Derelict 4401 | -6/Extension | Rescued a captive Derelict 4412 | -6/Extension | Build established: Hacker-Gunner 4599 | -6/Extension | Lost 3 allies 4658 | -6/Extension | Rescued a captive Derelict 4661 | -6/Extension | Spotted B-75 Beast 4661 | -6/Extension | Rescued a captive Derelict 4689 | -6/Extension | Destroyed B-75 Beast 4725 | -6/Extension | Lost 5 allies 4791 | -6/Extension | Discovered new exit (range 3) 5017 | -6/Extension | Build established: Scavenger-Gunner 5034 | -6/Extension | Discovered new exit (range 16) 5034 | -6/Extension | Discovered new exit (range 16) 5273 | -6/Extension | Rescued a captive Derelict 5274 | -6/Extension | Rescued a captive Derelict 5429 | -6/Extension | Rescued a captive Derelict 5640 | -6/Extension | Build established: Commander-Gunner 5802 | -6/Extension | Entered Cetus 5802 | -6/Cetus | Accompanied by 12 allies 5825 | -6/Cetus | Spotted Cetus Guard 5826 | -6/Cetus | Spotted Cetus Guard 5831 | -6/Cetus | Spotted Cetus Guard 5837 | -6/Cetus | Allies destroyed Cetus Guard 5837 | -6/Cetus | Spotted Cetus Guard 5843 | -6/Cetus | Allies destroyed Cetus Guard 5849 | -6/Cetus | Allies destroyed Cetus Guard 5857 | -6/Cetus | Allies destroyed Cetus Guard 5884 | -6/Cetus | Lost 7 allies 6054 | -6/Cetus | Discovered new exit (range 15) 6079 | -6/Cetus | Spotted Cetus Guard 6079 | -6/Cetus | Spotted Cetus Guard 6086 | -6/Cetus | Spotted Cetus Guard 6088 | -6/Cetus | Spotted Cetus Guard 6119 | -6/Cetus | Entered Archives 6127 | -6/Archives | Lost 4 allies 6142 | -6/Archives | Build established: Scavenger-Gunner 6243 | -6/Archives | Unable to access archive contents 6255 | -6/Archives | Unable to access archive contents 6261 | -6/Archives | Discovered new exit (range 14) 6282 | -6/Archives | Unable to access archive contents 6287 | -6/Archives | Discovered new exit (range 15) 6294 | -6/Archives | Unable to access archive contents 6299 | -6/Archives | Discovered new exit (range 13) 6367 | -6/Archives | Entered Hub_04(d) 6473 | -6/Hub_04(d) | Lost 4 parts (1p2n1w) 6780 | -6/Hub_04(d) | Identified exit to Factory 6816 | -6/Hub_04(d) | Spotted B-75 Beast 6913 | -6/Hub_04(d) | Lost 3 parts (1p1n1w) 6971 | -6/Hub_04(d) | Core integrity fell below 50% 6986 | -6/Hub_04(d) | Lost 5 parts (1n2u2w) 6998 | -6/Hub_04(d) | Entered Factory 6998 | -5/Factory | Evolved 2 slots: Propulsion x1, Weapon x1 7230 | -5/Factory | Spotted B-75 Beast 7313 | -5/Factory | Lost 4 parts (1p3u) 7554 | -5/Factory | Destroyed B-75 Beast 7823 | -5/Factory | Build established: Scavenger-Tank 7956 | -5/Factory | Discovered new exit (range 10) 8103 | -5/Factory | Discovered new exit (range 8) 8106 | -5/Factory | Cargo convoy interrupted 8110 | -5/Factory | Entered Upper Caves 8149 | -5/Upper Caves | Attracted the attention of an 0b10 outpost 8378 | -5/Upper Caves | Attracted the attention of an 0b10 checkpoint 8430 | -5/Upper Caves | Lost 9 parts (2p3n1u3w) 8878 | -5/Upper Caves | Learned location of 1 exit from Proximity Caves 9006 | -5/Upper Caves | Learned 8 Factory zone layouts 9419 | -5/Upper Caves | Discovered new exit (range 15) 9611 | -5/Upper Caves | Entered another Upper Caves area 9640 | -5/Upper Caves | Attracted the attention of an 0b10 outpost 9850 | -5/Upper Caves | Spotted B-75 Beast 9863 | -5/Upper Caves | Destroyed B-75 Beast 9895 | -5/Upper Caves | Learned 8 Factory zone layouts 9961 | -5/Upper Caves | Learned location of 1 exit from Proximity Caves 10163 | -5/Upper Caves | Build established: Scavenger-Mutant 10547 | -5/Upper Caves | Lost 3 parts (1p1n1u) 10899 | -5/Upper Caves | Discovered new exit (range 12) 10916 | -5/Upper Caves | Entered Warlord 10972 | -5/Warlord | System corruption cleaned by Quarantine Array 11886 | -5/Warlord | Warlord's base attacked by MAIN.C 11896 | -5/Warlord | Met Warlord 12145 | -5/Warlord | Build established: Scavenger-Tank 12236 | -5/Warlord | Warlord forces counterattacked 12252 | -5/Warlord | Spotted Executioner 12268 | -5/Warlord | Spotted Striker 12271 | -5/Warlord | Allies destroyed Executioner 12282 | -5/Warlord | Allies destroyed Striker 12303 | -5/Warlord | Lost 6 allies 12361 | -5/Warlord | Lost 6 allies 12422 | -5/Warlord | Opened side exit 12450 | -5/Warlord | Spotted Striker 12457 | -5/Warlord | Destroyed Striker 12463 | -5/Warlord | Spotted Executioner 12469 | -5/Warlord | Core integrity fell below 50% 12470 | -5/Warlord | Spotted Executioner 12537 | -5/Warlord | Lost 7 parts (1p1n3u2w) 12561 | -5/Warlord | Warlord base infiltrated, sounded retreat 12587 | -5/Warlord | Spotted Striker 12605 | -5/Warlord | Lost 4 allies 12625 | -5/Warlord | Lost 4 parts (2n1u1w) 12666 | -5/Warlord | Spotted Striker 12666 | -5/Warlord | Spotted Executioner 12704 | -5/Warlord | Lost 9 allies 12883 | -5/Warlord | Found Prototype Device 12883 | -5/Warlord | Identified Thermal Barrier 12891 | -5/Warlord | Found Prototype Reactor 12891 | -5/Warlord | Identified Vortex Chain Reactor 12908 | -5/Warlord | Found Prototype Hackware 12908 | -5/Warlord | Identified Ghost Barrier 12942 | -5/Warlord | Spotted Executioner 12987 | -5/Warlord | Destroyed Executioner 13049 | -5/Warlord | Spotted Striker 13053 | -5/Warlord | Destroyed Striker 13072 | -5/Warlord | Spotted Executioner 13109 | -5/Warlord | Found Prototype Energy Gun 13109 | -5/Warlord | Identified Vortex Rail 13112 | -5/Warlord | Found Vortex Rail 13113 | -5/Warlord | Destroyed 7 combat bots 13115 | -5/Warlord | Destroyed Executioner 13145 | -5/Warlord | Found Prototype Device 13145 | -5/Warlord | Identified Adv. Kinecellerator 13150 | -5/Warlord | Found Prototype Processor 13150 | -5/Warlord | Identified Exp. Core Analyzer 13219 | -5/Warlord | Core integrity fell below 20% 13265 | -5/Warlord | Destroyed 8 combat bots 13324 | -5/Warlord | Lost 8 parts (2p1u5w) 13344 | -5/Warlord | Spotted B-86 Titan 13374 | -5/Warlord | Destroyed by G-67 Veteran with Field Laser Last Messages --------------- 13285_ Vortex Chain Reactor destroyed. 13285_ Critical hit (Burn: +37). 13286_ ANNOUNCEMENT: Detected 2 Grunt squads, 1 Swarmer squad, 1 Demolisher squad, with prototype support. 13290_ Slug penetrates Wall. 13292_ Imp. Quantum Reactor destroyed. 13293_ Gamma Rifle destroyed. 13303_ S-27 Virus destroyed. 13320_ Acquired Lgt. Nuclear Core. 13321_ S-27 Virus destroyed. 13339_ Acquired 32 matter. 13353_ JRFNQF>ITQZZSQJI:GCNFXAJ=N 13355_ S-27 Virus destroyed. 13360_ Acquired Lgt. Nuclear Core. 13369_ Penetrated by Slug. 13369_ Adv. VSS Leg destroyed. 13369_ Slug penetrates Wall. 13372_ Penetrated by Slug. 13372_ Slug penetrates Wall. Map ----- +----------------------------------------------------+ | ?????????# #??# ##????#"????????????????? | | ?????????# #??# #?????#""???????????????? | | ?????????# #??# #?????#""#???###????????? | | ?#####???# ! ]] #??# #?????#""#### ##???????? | | #???# && #??# #?????#"" # #???????? | | """" #???# ! & #### #######""# ######??? | | """" #???# # " "" #"#### | | """" #???# " "" *!"# | | ######+#" [ */=[%= | | """" #""# !=% ] % " %[%!/==%[ | | """" + = % ]= " %!%%%%[ | | """" " == %%==%!%=%% | | = ! = gg %==%%%*![!! | | #+##" # = i " !==% *=!=%= | | g "" * &=[=# | | # g g "" #" """""### | | "! # # # ""## ##?### ###?? | | ] ### #### ""#?##?????###???? | | ##"# # # ???# #??###""#??????????????? | | ?### # # ???# ##????#""#??????????????? | | ???## # # ???## ##?????""#??????????????? | | ????# # # ???# #??????????????????????? | | ????## #???# #??????????????????????? | | ????#"" # ######## #??????????????????????? | | ????#"" [# ## # #??????????????????????# | | ????##" " # ## # @#?????????????????????## | | ?????##" "## ## ## ##?????????????????????# | | ??????####?# ## ## #??????????????????????# | | ?????####### ## ## #?????????????????????# | | ?????# % ## ## #???????????????????? | | ?????# ## ## #??????????????????? | | ###### ## ## "?????????????????# ##? | | + " "?????????????????####??? | | ######## ###### ## ##??????????????????????? | | ???????# #????# ## #???????????????????????? | | ##?????# ####?# ## ##??????????????????????? | | #?????# ## #####+### ######?????????????????? | | #?????# % # ]#?????????????????? | | ####### % + #?????????????????? | | + # #?????????????????? | | ###########+######## # ||[#?????????????????? | | ######## #??##+#########?????????????????? | | / #?? #?????????????????????????? | | ######## # #?????????????????????????? | | #???# # #?????????????????????????? | | #???# #######?????????????????????????? | | #???# #???????????????????????????????? | | #???# #???????????????????????????????? | | ####???# #???????????????????????????????? | | ???????###########???????????????????????????????? | +----------------------------------------------------+ Best States ------------- Heat Dissipation 128 Coolant Potential 65 Energy Generation 79 Energy Capacity 1550 Matter Stores 300 Matter Capacity 300 Sight Range 16 Robot Scan Range 14 Terrain Scan Density 10 ECM Strength 2 Jamming Range 14 Additional Mass Support 9 Armor Coverage 600 Resistance: KI 20 Resistance: TH 70 Resistance: EX 20 Resistance: EM 20 Resistance: I 20 Resistance: S 20 Resistance: P 20 Propulsion Shielding 66 Point Defense Rating 80 Melee Speed Boost 20 Phase Shifting 5 Evasion (%) 60 Targeting Accuracy 8 Target Analysis 6 Recoil Reduction 3 Energy Filtering 30 Particle Charging 15 Offensive Hacking 20 Defensive Hacking 20 Item Schematics ----------------- Imp. Ion Engine | -8/Materials | Scanalyzed Hardlight Generator | -8/Materials | Scanalyzed Arm. Wheel | -8/Materials | Hacked Robot Schematics ------------------ None Fabricated ------------ Arm. Wheel | x2 | -7/Factory Arm. Wheel | x2 | -7/Factory Arm. Wheel | x2 | -6/Factory Repaired ---------- Com. Wheel | 10% | -8/Materials Studied --------- Arm. Wheel | -8/Materials | Hacked Imp. Deuterium Engine | -7/Factory | Hacked Hvy. Ion Cannon | -7/Factory | Hacked Com. Wheel | -7/Factory | Hacked Scythe | -7/Factory | Hacked Alien Tech Used ----------------- None Achievements -------------- All Kinds Of Bad News For Emergencies Only Ghost 'Em Hydra Into The Breach Jackpot Leap Before You Look No Explosion For You Overwhelming Protector Resistances Are Futile Sprinter Challenges ------------ None Game ------ Seed GuidanceGuidancePlating Manual? 0 Play Time 03:04:39 Cumulative 49.0 hours Start 2026.03.04 @ 15:35:08 End 2026.03.05 @ 15:36:25 Sessions 9 Manual Loads 0 Difficulty Adventurer Special Mode None Game No. 52 Rogue 4 Adventurer 48 Explorer 0 Win Type - Total 0 Types 0/0/0/0/0/0/0/0/0/0 Lore% 14 Gallery% 37 Achievement% 23 Wizard Run 0 Options --------- Layout 1 ASCII 0 Keyboard 0 Movement Mouse Keybinds 0 Fullscreen 1 Font 24/Smallcaps Map View 50x35 Zoom Use 0% Tactical HUD 1 Map Filters NONE Filters NONE Steam 1 RUN: 504b5542-fc5e-4208-9648-f9d548b6f3bd